bitfinex/quotes_ETHUSD_20250625
["timestamp","ask_amount","ask_price","bid_price","bid_amount"]
[1750860197898,1.59835279,2433.0,2432.6,4.31562152]
[1750860198626,1.59835279,2433.0,2432.6,4.31562536]
[1750860198935,0.2048,2433.0,2432.6,4.31562536]
[1750860199904,0.2048,2433.0,2432.7,4.11064835]
[1750860200216,4.31497368,2433.0,2432.6,4.3155459]
[1750860200413,0.2048,2433.0,2432.6,0.2048]
[1750860201107,4.11040173,2432.9,2432.6,0.2048]
[1750860201425,4.31505541,2433.0,2432.6,0.2048]
[1750860201426,0.2048,2433.0,2432.6,0.2048]
[1750860201714,4.11033592,2432.9,2432.6,0.2048]
[1750860201895,0.2048,2433.0,2432.6,0.2048]
[1750860202094,0.2048,2433.0,2169.8,0.51388329]
[1750860202095,4.11093675,2432.6,2431.9,4.11196705]
[1750860202285,4.11093675,2432.6,2431.7,0.8028]
[1750860202286,4.11093675,2432.6,2432.0,0.2048]
[1750860202287,0.2048,2432.4,2432.0,0.2048]
[1750860202486,4.11169805,2432.1,2431.8,0.2056]
[1750860202711,0.7875,2432.2,2431.2,11.752]
[1750860202712,4.11193644,2432.0,2431.5,4.1125997]
[1750860202919,4.89904362,2432.2,2431.7,4.11234938]
[1750860202920,0.2048,2432.1,2431.7,4.11234938]
[1750860203122,0.2048,2432.1,2431.6,4.3180988]
[1750860203123,0.2048,2432.1,2431.8,4.11217859]
[1750860203291,0.2048,2432.1,2431.7,4.11234938]
[1750860203492,0.2048,2432.1,2431.6,0.2056]
[1750860203493,4.31647617,2432.1,2431.6,4.31804476]
[1750860203689,0.2048,2432.1,2431.6,4.31804476]
[1750860203914,0.2048,2432.1,2431.8,4.11217632]
[1750860204389,0.2048,2432.1,2431.7,4.11228975]
[1750860204595,0.2048,2432.1,2431.9,4.11193115]
[1750860204807,0.2048,2432.1,2431.7,0.7952]
[1750860205036,0.7672,2432.6,2431.7,0.7952]
[1750860205037,0.2048,2432.6,2432.4,4.11116592]
[1750860205324,0.2048,2432.8,2432.7,4.11065893]
[1750860205526,6.00329944,2433.6,2432.8,4.11043118]
[1750860205731,6.00329944,2433.6,2432.7,1.0376]
[1750860205732,0.2048,2433.2,2432.7,1.0376]
[1750860205885,0.2048,2433.2,2432.9,4.31502881]
[1750860206089,0.2048,2433.2,2432.8,4.11042606]
[1750860206626,0.2048,2433.2,2432.8,4.11046015]
[1750860206932,4.31461441,2433.2,2432.7,4.3153827]
[1750860207116,6.23828208,2433.2,2432.7,4.31537064]
[1750860207286,0.2048,2433.0,2432.8,4.11041892]
[1750860207895,0.2048,2433.0,2432.9,4.11032101]
[1750860208392,0.2048,2433.0,2432.8,4.11041892]
[1750860208393,0.2048,2433.4,2433.2,4.10970893]
[1750860208590,0.2048,2433.4,2432.2,4.66150161]
[1750860208591,1.92228,2433.4,2433.0,4.87085195]
[1750860208916,0.2048,2433.4,2433.0,0.2048]
[1750860209127,0.50762468,2434.5,2433.3,0.7608]
[1750860209128,0.8332,2434.2,2433.3,0.7608]
[1750860209438,4.10771157,2434.5,2433.5,0.7608]
[1750860209439,0.8332,2434.5,2433.5,0.7608]
[1750860209730,6.969,2434.4,2434.2,4.10812474]
[1750860209894,0.61501727,2434.5,2433.7,4.10892626]
[1750860210094,0.34229727,2434.5,2434.3,4.10779489]
[1750860210291,0.34229727,2434.5,2434.4,4.10778836]
[1750860210618,0.34229727,2434.5,2434.3,4.1079335]
[1750860210805,0.34229727,2434.5,2434.2,4.10805069]
[1750860211125,0.34229727,2434.5,2434.0,0.7608]
[1750860211295,4.89492366,2434.5,2434.0,4.86919358]
[1750860211496,0.7666,2434.4,2433.9,4.10856915]
[1750860211717,4.10825832,2434.2,2433.7,0.7608]
[1750860211909,4.10825832,2434.2,2433.7,4.1089561]
[1750860212826,6.968,2434.3,2434.0,4.10836423]
[1750860213138,0.7666,2434.4,2433.4,4.93646005]
[1750860213295,6.968,2434.3,2434.0,4.10831652]
[1750860213710,6.968,2434.3,2433.8,4.10869261]
[1750860213908,6.968,2434.3,2433.9,4.1086271]
[1750860214327,0.7801,2434.7,2434.3,4.10795711]
[1750860214506,0.7801,2434.7,2433.9,2.6612]
[1750860214709,0.7801,2434.7,2434.1,4.10829464]
[1750860214912,9.6339,2435.0,2434.7,4.10725613]
[1750860215525,9.6339,2435.0,2434.8,4.10709369]
[1750860215827,1.893,2435.0,2434.8,4.10709369]
[1750860216128,0.7721,2435.2,2434.4,0.8025]
[1750860216318,8.04939667,2435.2,2434.6,4.10732724]
[1750860216627,4.10672805,2435.1,2434.5,4.10753881]
[1750860216815,3.94284631,2435.2,2434.4,0.8025]
[1750860217012,4.87947335,2434.7,2434.1,0.7546]
[1750860217323,4.87947335,2434.7,2433.8,1.893]
[1750860217324,7.7381,2434.7,2433.8,2.6476]
[1750860217632,4.107623,2434.5,2433.9,4.10847829]
[1750860217925,4.107623,2434.5,2433.4,4.10934471]
[1750860217926,4.107623,2434.5,2433.6,4.10899207]
[1750860218132,4.10806159,2434.3,2433.5,0.8123]
[1750860218304,0.827,2434.2,2433.8,4.10877059]
[1750860219000,0.2048,2434.1,2433.8,4.10877059]
[1750860219913,0.2048,2434.1,2433.8,4.10876975]
[1750860220628,0.2048,2434.1,2434.0,4.10846343]
[1750860220811,10.8227,2434.5,2434.3,4.10782164]
[1750860220812,1.0275,2434.5,2434.3,4.10782164]
[1750860221227,1.0275,2434.5,2434.1,4.10819123]
[1750860221432,1.0275,2434.5,2434.4,4.10778836]
[1750860221433,0.2048,2434.5,2434.4,4.10778836]
[1750860221628,0.2048,2434.5,2434.3,4.10787086]
[1750860221807,10.2048,2434.7,2434.3,4.10787086]
[1750860222014,10.2048,2434.7,2434.4,4.10769662]
[1750860222412,10.2048,2434.7,2434.3,4.10788109]
[1750860222725,0.2048,2434.7,2434.4,4.1077659]
[1750860222927,0.2048,2434.7,2434.5,4.1075603]
[1750860223135,0.785,2434.8,2434.3,4.10791901]
[1750860223310,0.9898,2434.8,2434.5,4.10758455]
[1750860223507,6.964,2435.0,2434.6,4.10744295]
[1750860223845,10.0,2434.9,2434.5,0.2048]
[1750860224145,10.0,2434.9,2434.5,0.964]
[1750860224338,7.7529,2435.1,2434.5,0.7592]
[1750860224505,7.9577,2435.1,2434.8,4.10711171]
[1750860224711,7.9577,2435.1,2434.8,4.10700438]
[1750860224712,0.9937,2435.1,2434.8,4.10700438]
[1750860224916,0.9937,2435.1,2434.7,4.31201734]
[1750860225130,0.9937,2435.1,2434.8,4.10700631]
[1750860225611,0.9937,2435.1,2435.0,4.10677618]
[1750860225612,0.2048,2435.1,2435.0,4.10677618]
[1750860226237,0.2048,2435.1,2434.9,4.10687654]
[1750860227123,0.2048,2435.1,2434.8,4.10702054]
[1750860227324,0.2048,2435.1,2434.9,4.10692671]
[1750860227520,0.2048,2435.1,2434.7,0.2048]
[1750860228256,10.0,2435.3,2435.2,4.10643889]
[1750860228413,4.93079034,2435.7,2435.0,0.775]
[1750860228414,1.0299,2435.7,2435.0,0.775]
[1750860228744,1.0299,2435.7,2435.2,4.31123539]
[1750860228924,6.963,2435.6,2435.3,4.10616436]
[1750860229247,0.2048,2435.7,2435.2,4.31121254]
[1750860229442,0.2048,2436.0,2435.6,4.10564178]
[1750860229744,17.1668,2436.0,2435.6,4.10576449]
[1750860229943,10.2048,2436.0,2435.5,5.11595979]
[1750860230245,0.811,2436.1,2435.2,0.8053]
[1750860230441,0.811,2436.1,2434.6,10.0]
[1750860230442,4.31051682,2435.7,2435.3,0.2048]
[1750860230746,11.27251682,2435.7,2435.3,0.2048]
[1750860231045,7.1668,2435.7,2435.3,4.31102922]
[1750860231351,7.1668,2435.7,2435.3,0.2048]
[1750860231525,7.1668,2435.7,2435.3,4.31098012]
[1750860231723,12.48282185,2435.7,2435.3,0.2048]
[1750860231928,0.2048,2435.5,2435.4,4.10610166]
[1750860232127,6.962,2435.7,2435.6,4.10576449]
[1750860232423,6.962,2435.7,2435.4,4.10610166]
[1750860232424,10.0,2435.8,2435.5,4.10583278]
[1750860232628,10.0,2435.8,2435.6,0.2048]
[1750860233143,10.0,2435.8,2435.4,4.10601723]
[1750860233144,4.31057181,2435.6,2435.2,0.2048]
[1750860233343,0.2048,2435.6,2435.3,4.10624774]
[1750860233915,0.2048,2435.6,2435.2,0.2048]
[1750860234444,0.7721,2435.5,2435.2,0.2048]
[1750860234828,0.7721,2435.5,2435.2,4.31123605]
[1750860235016,0.7721,2435.5,2435.2,4.31116666]
[1750860235213,0.7721,2435.5,2435.2,0.2048]
[1750860235414,0.7721,2435.5,2435.2,4.31123309]
[1750860235616,0.7721,2435.5,2435.2,0.2048]
[1750860235815,0.7721,2435.5,2435.2,4.31117066]
[1750860236220,0.2048,2435.6,2435.4,4.10602214]
[1750860237552,0.2048,2435.6,2435.3,4.31100579]
[1750860237965,0.2048,2435.6,2435.4,4.10609605]
[1750860238263,0.2048,2435.6,2435.4,4.1060903]
[1750860238824,0.2048,2435.6,2435.4,4.1060825]
[1750860239153,0.2048,2435.6,2435.4,4.10609454]
[1750860239722,0.2048,2435.6,2435.5,4.10593307]
[1750860240156,0.2048,2435.6,2435.4,4.10602302]
[1750860240355,0.2048,2435.6,2435.3,0.2048]
[1750860240660,0.2048,2435.6,2435.3,4.3110209]
[1750860240837,0.2048,2435.6,2435.4,4.10609556]
[1750860241240,0.2048,2435.6,2435.3,4.31097615]
[1750860241554,0.2048,2435.6,2435.3,0.2048]
[1750860241556,4.10610166,2435.4,2435.3,0.2048]
[1750860241747,4.10610166,2435.4,2434.6,0.2048]
[1750860241748,4.10728221,2434.7,2434.6,0.2048]
[1750860241936,0.8143,2434.7,2433.9,0.8234]
[1750860242134,0.2048,2434.7,2434.2,0.2048]
[1750860242338,7.1628,2434.7,2434.2,0.2048]
[1750860242556,7.1628,2434.7,2434.2,4.31279143]
[1750860242758,7.1628,2434.7,2434.2,0.2048]
[1750860242971,4.10749601,2434.6,2434.2,0.2048]
[1750860243179,7.1628,2434.7,2434.0,4.1083888]
[1750860243180,11.06533001,2434.7,2434.0,4.1083888]
[1750860243379,5.07984057,2434.5,2434.1,0.2048]
[1750860243840,0.2048,2434.5,2434.2,4.10797351]
[1750860244052,0.2048,2434.6,2434.2,4.31277351]
[1750860244236,7.1638,2434.6,2434.2,4.31277351]
[1750860244444,7.7263,2434.8,2434.4,4.10777352]
[1750860244623,7.9311,2434.8,2434.4,4.31257352]
[1750860245028,12.03829814,2434.8,2434.4,0.2048]
[1750860245270,0.2048,2434.8,2434.7,4.10728221]
[1750860245477,10.0,2434.8,2434.6,0.2048]
[1750860245663,4.1070863,2434.9,2433.9,4.10861745]
[1750860245664,4.10774782,2434.5,2433.9,4.10861745]
[1750860245836,4.10774782,2434.5,2433.8,4.10878694]
[1750860245837,0.2048,2434.5,2434.2,4.10803892]
[1750860246033,7.9444,2434.6,2434.1,4.31305006]
[1750860246268,7.9444,2434.6,2434.1,4.3130404]
[1750860246464,7.9444,2434.6,2434.2,4.10800094]
[1750860246667,7.9444,2434.6,2434.1,0.2048]
[1750860246968,0.2048,2434.6,2434.4,4.10769988]
[1750860247174,14.93442268,2434.9,2434.4,4.10769988]
[1750860247175,0.2048,2434.8,2434.5,4.10761963]
[1750860247969,4.31193578,2434.8,2434.4,0.2048]
[1750860248160,0.2048,2434.8,2434.4,4.31245395]
[1750860248360,4.10736118,2434.7,2434.4,0.2048]
[1750860249142,0.2048,2434.8,2434.4,0.2048]
[1750860249355,0.2048,2434.8,2434.4,4.31254846]
[1750860249544,0.2048,2434.8,2434.4,0.2048]
[1750860249938,4.31196906,2434.8,2434.4,0.2048]
[1750860250262,0.2048,2434.8,2434.4,4.31257137]
[1750860250457,0.2048,2434.8,2434.4,0.2048]
[1750860251044,0.2048,2434.8,2434.4,4.31250483]
[1750860251263,0.2048,2434.8,2434.5,4.10761172]
[1750860251456,0.2048,2434.8,2434.6,4.10744567]
[1750860251880,0.2048,2434.8,2434.4,4.31250029]
[1750860252051,0.2048,2434.8,2434.5,4.10760378]
[1750860252276,0.2048,2434.8,2434.4,0.2048]
[1750860253377,4.31196898,2434.8,2434.4,0.2048]
[1750860253571,4.90792931,2434.7,2434.1,0.7806]
[1750860253773,4.31227111,2434.6,2434.2,0.2048]
[1750860253964,6.959,2434.5,2434.1,4.10820773]
[1750860254274,7.1638,2434.5,2434.2,4.10809665]
[1750860254475,7.1638,2434.5,2434.0,0.2048]
[1750860254674,10.0,2435.0,2434.4,0.8223]
[1750860254675,6.959,2434.6,2434.4,0.8223]
[1750860254850,0.2048,2434.7,2434.5,4.10747285]
[1750860255045,0.2048,2434.7,2434.5,4.1075335]
[1750860255871,0.2048,2434.7,2434.3,0.2048]
[1750860256071,0.2048,2434.7,2434.3,4.3127197]
[1750860256446,4.31209996,2434.7,2434.3,0.2048]
[1750860256779,0.2048,2434.7,2434.3,4.31271584]
[1750860256975,4.31211208,2434.7,2434.3,0.2048]
[1750860257276,4.10754585,2434.6,2434.3,0.2048]
[1750860257466,4.88764663,2434.5,2434.0,4.10834271]
[1750860257778,4.10805208,2434.3,2434.0,0.2048]
[1750860257962,4.10807571,2434.3,2433.7,4.31360821]
[1750860258167,0.2048,2434.1,2433.8,4.10877981]
[1750860258473,0.2048,2434.1,2434.0,4.10846343]
[1750860258841,0.2048,2434.3,2434.0,4.10846343]
[1750860259046,0.2048,2434.3,2433.8,0.2048]
[1750860259047,10.7734,2434.2,2433.8,0.2048]
[1750860259245,0.7734,2433.5,2432.8,0.8321]
[1750860259447,0.7734,2433.5,2433.2,4.10972039]
[1750860261060,0.7734,2433.5,2433.3,4.10962757]
[1750860261353,0.7734,2433.5,2433.2,4.10972418]
[1750860261571,0.7734,2433.5,2432.8,0.8321]
[1750860261771,0.7734,2433.5,2433.1,4.1098184]
[1750860262286,0.7734,2433.5,2432.8,0.8321]
[1750860262451,0.7734,2433.5,2433.1,4.10990605]
[1750860262782,0.7734,2433.5,2432.9,4.11020012]
[1750860262960,0.7734,2433.5,2432.8,0.8321]
[1750860263161,0.7734,2433.5,2433.1,4.10983398]
[1750860263790,10.7734,2433.5,2432.8,0.8321]
[1750860263972,0.7693,2433.1,2432.7,4.11064931]
[1750860264151,0.7693,2433.1,2432.6,4.11081005]
[1750860264358,0.7693,2433.1,2432.1,0.795]
[1750860264573,0.7693,2433.1,2432.7,4.11051639]
[1750860264747,0.7693,2433.1,2432.7,4.11050682]
[1750860264952,0.7693,2433.1,2433.0,4.11015207]
[1750860265169,8.848,2433.2,2433.0,4.11015207]
[1750860265451,10.0,2433.3,2432.7,0.8027]
[1750860265662,10.0,2433.3,2432.7,4.91330146]
[1750860265862,10.0,2433.3,2432.9,4.110281]
[1750860267085,6.96,2433.5,2433.2,4.10975593]
[1750860267383,4.10875748,2433.9,2432.9,4.88992101]
[1750860267384,0.8013,2434.2,2433.1,0.7988]
[1750860267582,2.6903,2434.5,2434.1,4.10829464]
[1750860267783,6.96,2434.4,2434.0,4.10837737]
[1750860267988,6.96,2434.4,2433.7,0.7988]
[1750860268154,0.8013,2434.2,2433.2,10.0]
[1750860268363,6.7984799,2434.2,2433.7,4.10885839]
[1750860268979,2.6903,2434.2,2433.1,6.79762659]
[1750860269291,0.2048,2434.0,2433.6,0.2048]
[1750860269492,6.96,2433.9,2433.6,4.31385532]
[1750860269866,6.96,2433.9,2433.7,4.10896167]
[1750860270066,6.96,2433.9,2433.8,4.10880105]
[1750860271159,0.2048,2434.0,2433.9,4.10863223]
[1750860271374,6.96,2434.1,2433.8,0.2048]
[1750860271866,6.96,2434.1,2433.8,4.31353241]
[1750860272090,6.96,2434.1,2433.8,0.2048]
[1750860272274,6.96,2434.1,2433.8,4.31351514]
[1750860272474,7.1648,2434.1,2433.8,4.10871514]
[1750860273262,6.96,2434.1,2433.6,0.8016]
[1750860273462,6.96,2434.1,2433.8,0.2048]
[1750860273667,10.8013,2434.2,2433.8,4.31359088]
[1750860273889,6.96,2434.1,2433.8,0.2048]
[1750860274093,7.1648,2434.1,2433.7,4.31375538]
[1750860274294,6.96,2434.1,2433.5,4.10922014]
[1750860274567,0.2048,2433.8,2433.5,4.10922082]
[1750860274983,0.2048,2433.8,2433.6,4.10911106]
[1750860275199,0.2048,2433.8,2433.5,4.10921857]
[1750860275502,0.2048,2433.8,2433.6,4.10905832]
[1750860275802,0.2048,2433.8,2433.6,4.10903708]
[1750860275959,0.2048,2433.8,2433.7,4.10896988]
[1750860276164,6.96,2433.8,2433.7,4.10896988]
[1750860276406,6.96,2433.8,2433.6,4.10905315]
[1750860276568,6.96,2433.9,2433.7,4.10895493]
[1750860277497,6.96,2433.9,2433.8,4.10880105]
[1750860277697,0.2048,2434.0,2433.8,4.10880105]
[1750860277907,7.1648,2434.0,2433.9,4.10863223]
[1750860278283,0.2048,2434.0,2433.9,4.10863223]
[1750860278673,7.1638,2434.4,2434.2,4.10811837]
[1750860278975,7.1638,2434.4,2433.9,4.31336932]
[1750860279173,7.1638,2434.4,2434.0,4.10831201]
[1750860279493,0.2048,2434.1,2433.9,4.1086215]
[1750860279699,0.2048,2434.1,2433.8,4.10871531]
[1750860279862,0.7170866,2434.1,2433.7,0.2048]
[1750860280066,0.2048,2433.9,2433.7,4.10894129]
[1750860280575,0.2048,2433.9,2433.6,4.10909721]
[1750860280776,0.2048,2433.9,2433.7,4.1089575]
[1750860280999,0.2048,2433.9,2433.8,4.10880105]
[1750860281168,7.1638,2433.9,2433.8,4.10880105]
[1750860281674,0.2048,2433.9,2433.8,4.10880105]
[1750860281998,0.7719,2434.8,2434.1,0.8035]
[1750860282201,0.2048,2434.8,2434.7,4.10728221]
[1750860282420,0.7719,2435.1,2434.8,4.10701149]
[1750860282618,0.2048,2434.9,2434.8,4.10711352]
[1750860282901,6.959,2435.2,2434.6,0.7584]
[1750860283108,7.1638,2435.2,2434.9,4.10686698]
[1750860283309,7.1638,2435.2,2435.0,4.10667414]
[1750860283609,17.1638,2435.2,2435.1,4.10660753]
[1750860283808,19.19878202,2435.2,2434.9,4.10679845]
[1750860283986,12.23978202,2435.2,2434.7,0.2048]
[1750860284185,0.2048,2435.2,2434.7,0.2048]
[1750860284390,10.2048,2435.2,2435.1,4.10660753]
[1750860284799,0.2048,2435.2,2435.1,4.10660753]
[1750860284974,0.51252017,2435.4,2435.0,4.31151766]
[1750860284975,0.2048,2435.4,2435.0,4.31151766]
[1750860285315,10.2048,2435.4,2435.1,4.10655217]
[1750860285813,10.2048,2435.4,2435.1,4.10653228]
[1750860286007,10.2048,2435.4,2435.2,4.10642457]
[1750860286507,10.2048,2435.4,2435.1,4.10660753]
[1750860286806,10.2048,2435.4,2435.0,0.2048]
[1750860287007,10.2048,2435.4,2435.0,4.31155872]
[1750860287209,0.2048,2435.4,2435.3,4.10627027]
[1750860287403,10.2048,2435.4,2435.3,4.10627027]
[1750860287587,10.2048,2435.4,2435.0,0.2048]
[1750860287787,10.2048,2435.4,2435.0,4.31151686]
[1750860288010,10.2048,2435.4,2435.1,4.10656787]
[1750860288305,10.2048,2435.4,2435.2,4.10643889]
[1750860288511,10.2048,2435.4,2435.1,4.10652657]
[1750860288712,10.2048,2435.4,2435.2,4.1063918]
[1750860288912,10.2048,2435.4,2435.0,0.2048]
[1750860289433,1.887,2435.9,2435.5,4.10590782]
[1750860289711,10.0,2435.6,2435.5,4.10590782]
[1750860289909,7.1618,2435.7,2435.5,4.10590782]
[1750860290115,0.2048,2435.7,2435.5,4.10590782]
[1750860290316,0.2048,2435.7,2435.6,4.10576449]
[1750860290503,0.2048,2435.7,2435.5,4.10584905]
[1750860291022,0.2048,2435.7,2435.2,5.07099051]
[1750860291218,0.2048,2435.7,2435.3,4.10615443]
[1750860291516,0.2048,2435.7,2435.4,4.10610052]
[1750860292014,0.2048,2435.7,2435.2,5.07099012]
[1750860292216,5.59176742,2435.7,2435.2,4.31119012]
[1750860292520,0.2048,2435.4,2435.1,4.1065192]
[1750860292691,0.2048,2435.4,2435.3,4.10627027]
[1750860293222,0.2048,2435.6,2435.3,4.10627027]
[1750860293609,0.7948,2435.7,2434.8,2.6992]
[1750860293610,0.7948,2435.7,2435.5,4.10593307]
[1750860293808,0.7948,2435.7,2434.8,2.6992]
[1750860293809,0.2048,2435.8,2435.3,0.2048]
[1750860294015,0.2048,2435.9,2435.7,4.10543734]
[1750860294190,0.2048,2435.9,2435.8,4.10540283]
[1750860294500,7.7529,2436.2,2436.0,4.10508802]
[1750860294696,0.2048,2436.1,2435.7,5.06874102]
[1750860294901,0.2048,2436.1,2435.9,4.10515966]
[1750860295099,0.8139,2437.0,2436.0,4.10509031]
[1750860295398,0.8139,2437.0,2436.1,0.7973]
[1750860295612,0.8139,2437.0,2436.1,2.6843]
[1750860295802,4.10366534,2436.9,2436.4,4.10431767]
[1750860295986,0.8139,2437.0,2436.1,6.78919416]
[1750860296186,0.8139,2437.0,2436.8,4.10361156]
[1750860296389,10.0,2437.4,2436.8,4.10361156]
[1750860296390,10.7601,2437.2,2436.8,4.10361156]
[1750860296695,10.7601,2437.2,2436.2,0.7715]
[1750860296894,4.10349795,2437.0,2436.4,4.10439691]
[1750860297105,4.10367668,2436.9,2436.4,4.10439691]
[1750860297312,4.91895868,2436.8,2436.2,4.8761497]
[1750860297512,4.91889944,2436.8,2436.1,4.10490738]
[1750860297688,0.8151,2436.8,2436.0,2.6503]
[1750860297888,4.91892871,2436.8,2436.3,4.10449838]
[1750860298511,0.8151,2436.8,2436.3,4.10449838]
[1750860298713,0.7942,2437.0,2436.6,4.10399355]
[1750860299220,10.0,2436.9,2436.4,4.10433544]
[1750860299417,10.0,2436.9,2436.3,4.10458449]
[1750860299418,4.10386937,2436.8,2436.3,4.10458449]
[1750860299721,0.7942,2437.0,2436.3,0.7853]
[1750860300023,10.7942,2437.0,2436.5,4.10415468]
[1750860300420,10.0,2437.0,2436.8,4.10365817]
[1750860300720,0.8135,2437.2,2436.8,4.10365817]
[1750860300721,0.8135,2437.2,2436.9,4.10357421]
[1750860300927,9.6006,2437.4,2437.0,4.10325155]
[1750860301091,10.0,2437.3,2436.9,4.10349036]
[1750860301429,10.0,2437.3,2436.9,4.10357421]
[1750860301730,10.7616,2437.4,2437.0,4.10340582]
[1750860302023,10.7616,2437.4,2437.0,4.10335085]
[1750860302224,0.7616,2437.4,2437.1,4.10318368]
[1750860302407,6.952,2437.7,2437.2,4.10292914]
[1750860302603,11.18770916,2437.6,2436.8,4.85461986]
[1750860302807,10.0,2437.4,2436.9,4.10347677]
[1750860303005,0.8229,2437.8,2436.8,4.85469577]
[1750860303006,0.8229,2437.8,2437.3,4.10283816]
[1750860303192,0.8229,2437.8,2437.3,4.10276301]
[1750860303391,0.8229,2437.8,2436.8,0.751]
[1750860303725,10.0,2437.7,2436.9,4.10355901]
[1750860304036,10.0,2437.7,2436.5,8.838]
[1750860304037,4.90582235,2437.5,2436.5,10.7564]
[1750860304204,4.10307119,2437.2,2436.7,4.10381973]
[1750860304826,4.10340582,2437.0,2436.4,4.1043181]
[1750860305011,4.10348529,2437.0,2436.4,4.10428699]
[1750860305206,4.10362439,2436.9,2436.4,4.10428699]
[1750860305406,0.2048,2436.8,2436.4,4.10428699]
[1750860305614,0.2048,2436.8,2436.3,4.30929041]
[1750860305932,4.30855187,2436.8,2436.3,4.30929041]
[1750860306226,4.10391364,2436.7,2436.3,0.2048]
[1750860306394,10.0,2436.6,2435.5,0.8118]
[1750860306592,0.2048,2436.2,2435.8,0.2048]
[1750860306822,0.2048,2436.2,2435.9,4.10514681]
[1750860307322,1.886,2436.5,2435.5,0.8118]
[1750860307521,1.886,2436.5,2436.0,4.10502387]
[1750860307929,10.0,2436.4,2435.6,4.10576449]
[1750860308100,4.75125119,2436.5,2435.6,4.10576449]
[1750860308101,4.10489458,2436.2,2435.6,4.10576449]
[1750860308300,4.10489458,2436.2,2435.7,4.10559063]
[1750860308495,4.10476204,2436.2,2435.5,1.886]
[1750860308825,6.95,2436.2,2435.5,1.886]
[1750860309400,6.95,2436.2,2435.8,4.10526202]
[1750860309730,6.95,2436.2,2435.7,4.10552206]
[1750860310101,6.95,2436.2,2435.6,4.10570494]
[1750860310307,6.95,2436.2,2435.7,4.10559592]
[1750860310529,6.95,2436.2,2435.8,4.10534624]
[1750860310823,4.10484932,2436.2,2435.5,5.99179596]
[1750860311023,0.7852,2436.3,2435.5,1.886]
[1750860311224,0.7852,2436.3,2436.0,4.10497279]
[1750860311393,0.7852,2436.3,2435.9,4.10517171]
[1750860311830,0.7852,2436.3,2435.8,4.10534335]
[1750860312218,0.7852,2436.3,2435.9,4.10524428]
[1750860312399,0.7852,2436.3,2435.5,5.99179788]
[1750860312600,10.0,2436.4,2435.8,0.8214]
[1750860312904,0.7711,2436.6,2436.2,4.10463026]
[1750860313105,0.7711,2436.9,2436.5,4.10415775]
[1750860313317,8.836,2437.1,2436.7,10.0]
[1750860313519,0.787,2437.2,2436.8,4.10365197]
[1750860313718,6.95,2437.6,2437.1,4.10317877]
[1750860314119,4.10215131,2437.8,2437.2,4.10306323]
[1750860314321,7.737,2437.9,2437.4,4.10267847]
[1750860314522,0.787,2437.9,2437.1,10.0]
[1750860314831,0.34229727,2437.8,2437.4,4.10263637]
[1750860315032,0.34229727,2437.8,2437.3,4.10286207]
[1750860315227,0.34229727,2437.8,2437.4,4.10264288]
[1750860315441,0.34229727,2437.8,2437.3,10.0]
[1750860315442,0.34229727,2437.8,2437.3,14.10282998]
[1750860315613,4.44443769,2437.8,2437.3,10.0]
[1750860315813,0.93333741,2437.7,2437.0,0.7941]
[1750860316009,4.10249115,2437.6,2437.0,10.7941]
[1750860316216,4.10288567,2437.4,2436.7,10.7754]
[1750860316540,2.6579,2437.5,2436.4,0.7736]
[1750860316836,4.10333331,2437.1,2436.5,14.10418144]
[1750860316998,0.7729,2437.0,2436.5,14.10418144]
[1750860317445,0.2048,2436.9,2436.5,0.2048]
[1750860317656,4.87644095,2437.0,2436.4,4.10431225]
[1750860317947,4.10374319,2436.8,2436.3,4.10452107]
[1750860318113,0.2048,2436.6,2436.2,4.30939666]
[1750860318438,0.2048,2436.6,2436.2,0.2048]
[1750860318605,0.2048,2436.6,2436.3,4.10458482]
[1750860318810,0.2048,2436.6,2436.2,4.30945235]
[1750860319313,0.2048,2436.6,2436.3,10.0]
[1750860319516,4.10380834,2436.8,2436.2,14.1047498]
[1750860319716,0.2048,2436.4,2436.1,14.104838]
[1750860319928,0.2048,2436.4,2436.1,4.1049218]
[1750860320242,4.10364917,2436.9,2436.4,4.10437921]
[1750860320429,0.2048,2436.8,2436.3,4.30932381]
[1750860321105,0.2048,2436.8,2436.0,4.10499762]
[1750860321307,0.2048,2436.9,2436.5,0.2048]
[1750860321511,0.2048,2436.6,2436.2,0.2048]
[1750860321739,0.7784,2436.5,2436.2,0.2048]
[1750860321935,0.2048,2436.6,2436.2,4.30944775]
[1750860322517,0.2048,2436.6,2436.4,4.10433278]
[1750860322856,0.2048,2436.6,2436.2,0.2048]
[1750860323014,0.8276,2437.1,2436.7,4.10391102]
[1750860323204,0.2048,2437.0,2436.9,4.10357421]
[1750860323409,10.2048,2437.3,2436.9,4.10357421]
[1750860323852,10.2048,2437.3,2436.8,0.2048]
[1750860323853,0.2048,2437.3,2436.8,0.2048]
[1750860324051,0.2048,2437.3,2437.1,4.10312313]
[1750860324549,2.6809,2437.7,2437.3,4.10274987]
[1750860324839,2.6809,2437.7,2437.2,4.10301107]
[1750860324840,0.34229727,2437.8,2437.4,4.10266334]
[1750860325008,0.34229727,2437.8,2437.6,4.10232196]
[1750860325209,0.34229727,2437.8,2437.5,4.30728525]
[1750860325516,0.34229727,2437.8,2437.5,4.30734957]
[1750860325729,0.34229727,2437.8,2437.5,0.2048]
[1750860326736,4.1025709,2437.5,2437.2,0.2048]
[1750860327033,0.7634,2437.4,2437.0,0.2048]
[1750860327540,0.2048,2437.3,2436.9,4.30828013]
[1750860327734,0.2048,2437.3,2436.9,0.2048]
[1750860327936,4.10242054,2437.6,2437.1,4.10313527]
[1750860328138,0.2048,2437.5,2437.2,4.10305416]
[1750860328438,4.103011,2437.3,2437.1,0.2048]
[1750860328608,0.2048,2437.3,2436.8,0.2048]
[1750860328804,0.2048,2437.3,2436.8,4.30839824]
[1750860329208,5.14875164,2437.3,2436.8,4.30839824]
[1750860329406,0.8,2437.2,2436.8,4.30839824]
[1750860329606,0.8,2437.2,2436.9,4.10357421]
[1750860330046,0.8,2437.2,2436.9,4.10348275]
[1750860330231,0.2048,2437.3,2436.9,4.10348275]
[1750860330822,0.71266507,2437.3,2436.8,0.2048]